Cogmind - Beta 10.2 @@@ ROGUE MODE // 2021.06.15 @ 21:33:18 Player: puncake Result: Destroyed by G-34 Mercenary with Small Laser Performance ------------- Evolutions (1) 500 Regions Visited (3) 600 Robots Destroyed (24) 120 Value Destroyed (657) 657 Prototype IDs (0) 0 Alien Tech Used (0) 0 Bonus (0) 0 TOTAL SCORE: 1877 Bonus ------- None Cogmind --------- Core Integrity 0/400 Matter 258/300 Energy 55/100 System Corruption 0% Temperature Cool (6) Movement Rolling (90) Location -9/Storage Parts ------- > --- POWER (1) -------- (None) > --- PROPULSION (4) --- Wheel Compact Wheel > --- UTILITY (2) ------ Medium Storage Unit Seismic Analyzer > --- WEAPON (2) ------- Heavy Assault Rifle Hammer > --- INVENTORY (8) ---- Light Treads Peak State ------------ > --- POWER ------------ Light Ion Engine > --- PROPULSION ------- Light Treads Aluminum Leg Aluminum Leg Aluminum Leg > --- UTILITY ---------- Medium Storage Unit Seismic Analyzer > --- WEAPON ----------- Heavy EM Pulse Gun Heavy Assault Rifle > --- INVENTORY -------- Light Treads Wheel Compact Wheel Beam Rifle Light Assault Rifle Light Assault Rifle EMP Blaster Hammer [Rating: 12] Favorites ----------- Power Ion Engine Engine Ion Engine Propulsion Aluminum Leg Treads Light Treads Leg Aluminum Leg Wheel Wheel Utility Seismic Analyzer Storage Medium Storage Unit Processor Seismic Analyzer Weapon Light Assault Rifle Energy Gun Medium Laser Ballistic Gun Light Assault Rifle Launcher EMP Blaster Impact Weapon Hammer Build | -11 -10 -9 -9 ------- Run | Scr Mat Mat Sto Slots Evolved 2 | . . 2 . Power . | . . . . Propulsion 2 | . . 2 . Utility . | . . . . Weapon . | . . . . Parts Attached 28 | 6 5 6 11 Power 2 | 1 . 1 . Engine 2 | 1 . 1 . Core . | . . . . Reactor . | . . . . Propulsion 8 | 2 1 2 3 Treads 2 | . . 1 1 Leg 4 | 2 1 1 . Wheel 2 | . . . 2 Hover . | . . . . Flight . | . . . . Utility 3 | 1 2 . . Device . | . . . . Storage 2 | 1 1 . . Processor 1 | . 1 . . Hackware . | . . . . Protection . | . . . . Artifact . | . . . . Weapon 15 | 2 2 3 8 Energy Gun 7 | 1 2 1 3 Energy Cannon . | . . . . Ballistic Gun 6 | 1 . 2 3 Ballistic Cannon . | . . . . Launcher 1 | . . . 1 Special Weapon . | . . . . Impact Weapon 1 | . . . 1 Slashing Weapon . | . . . . Piercing Weapon . | . . . . Special Melee Weapon . | . . . . Unidentified Prototypes . | . . . . Parts Lost 18 | . 2 3 13 Power 2 | . . 2 . Propulsion 5 | . . . 5 Utility . | . . . . Weapon 11 | . 2 1 8 Highest Loss Streak 9 | . 1 2 9 Average Slot Usage (%) 87 | . 99 96 70 Engine 7 | . 14 7 . Treads 5 | . . 10 8 Leg 25 | . 28 33 16 Wheel 2 | . . . 6 Storage 12 | . 14 11 11 Processor 11 | . 13 11 11 Energy Gun 8 | . 14 6 3 Ballistic Gun 12 | . 14 15 8 Impact Weapon 1 | . . . 5 Naked Turns . | . . . . Heaviest Build 16 | 12 16 15 14 Greatest Support 30 | 20 20 30 30 Greatest Overweight (x) 3 | . . . 3 Average Overweight (x) . | . . . . Largest Inventory Capacity 8 | 6 8 8 8 Average Capacity 7 | 5 7 8 8 Most Carried 8 | 6 8 8 8 Average Carried 5 | 3 6 6 4 Final Capacity 8 | 6 8 8 8 Final Carried 8 | 6 8 8 1 Class Distribution -------------------- 100% | Mutant Dominant Class ---------------- Mutant | -10/Materials Mutant | -9/Materials Mutant | -9/Storage Resources | -11 -10 -9 -9 ----------- Run | Scr Mat Mat Sto Matter Collected 538 | 238 93 107 100 Remotely . | . . . . Salvage Created 964 | . 214 264 486 Parts 61 | . 16 24 21 Haulers Intercepted 2 | . . 1 1 Recyclers Shooed 4 | . . 2 2 Parts Field Recycled . | . . . . Retrieved Matter . | . . . . Parts Self-Destructed . | . . . . Prevented . | . . . . Kills | -11 -10 -9 -9 ------- Run | Scr Mat Mat Sto Combat Hostiles Destroyed 18 | . 7 3 8 Melee 1 | . . . 1 Guns 14 | . 7 3 4 AOE 2 | . . . 2 Classes Destroyed 7 | . 2 4 1 Builder 2 | . . 1 1 Hauler 2 | . . 1 1 Recycler 1 | . . . 1 Watcher 1 | . . 1 . Swarmer 3 | . 3 . . Grunt 10 | . 4 . 6 Sentry 5 | . . 3 2 Best Kill Streak 3 | . 3 3 3 Combat Bots Only 3 | . 3 2 2 Max Kills in Single Turn 2 | . 1 2 2 Gunslinging . | . . . . Exploded 1 | . . . 1 Melee 1 | . . . 1 Uniques/NPCs Destroyed . | . . . . Combat | -11 -10 -9 -9 -------- Run | Scr Mat Mat Sto Damage Taken 2119 | . 375 294 1450 Core 492 | . 87 29 376 Absorbed by Shields . | . . . . Core Remaining (%) 82 | 100 65 . . Volleys Fired 95 | . 31 29 35 Largest 2 | . 2 2 2 Hottest 76 | . 70 68 76 Shots Fired 169 | . 61 55 53 Gun 166 | . 61 55 50 Cannon . | . . . . Launcher 3 | . . . 3 Special . | . . . . Kinetic 112 | . 31 45 36 Thermal 48 | . 30 4 14 Explosive . | . . . . Electromagnetic 9 | . . 6 3 Robot Hit Streak 12 | . 12 7 8 Robot Miss Streak 6 | . 6 4 1 Penetration Max . | . . . . Secondary Targets . | . . . . Shots Hit Robots 136 | . 38 37 61 Core Hits 46 | . 15 14 17 Critical Hits 1 | . . . 1 Critical Kills . | . . . . Critical Parts Destroyed . | . . . . Melee Attacks 28 | . . . 28 Impact 28 | . . . 28 Slashing . | . . . . Piercing . | . . . . Sneak Attacks 4 | . . . 4 Combat Hostiles . | . . . . Follow-up Attacks . | . . . . Damage Inflicted 1810 | . 377 363 1070 Guns 1209 | . 377 363 469 Cannons . | . . . . Explosions 104 | . . . 104 Melee 497 | . . . 497 Ramming . | . . . . Kinetic 714 | . 143 242 329 Thermal 417 | . 234 43 140 Explosive . | . . . . Electromagnetic 182 | . . 78 104 Impact 497 | . . . 497 Slashing . | . . . . Piercing . | . . . . Highest Corruption . | . . . . Average Corruption . | . . . . Corruption Purged . | . . . . Overload Shots . | . . . . Overflow Damage 82 | . . . 82 Projectiles . | . . . . Explosions . | . . . . Melee 82 | . . . 82 Knockbacks 4 | . . . 4 Impact 4 | . . . 4 Kinetic . | . . . . Secondary . | . . . . Self-Inflicted Damage . | . . . . Shots . | . . . . Rammed . | . . . . Targets Rammed . | . . . . Kicked . | . . . . Crushed . | . . . . Highest Temperature 203 | . 203 46 41 Average Temperature 56 | . 77 18 8 Received Heat Transfer 915 | . 132 81 702 Siege Activations . | . . . . Robots Corrupted . | . . . . Combat Hostiles . | . . . . Parts Fried 3 | . . . 3 Impact Corruptions 5 | . . . 5 Robots Melted . | . . . . Combat Hostiles . | . . . . Parts Melted 1 | . . . 1 Heat Transferred 1103 | . 667 100 336 Parts Sabotaged . | . . . . Parts Stolen . | . . . . Parts Stripped . | . . . . Power Chain Reactions . | . . . . Missiles Intercepted . | . . . . Alert | -11 -10 -9 -9 ------- Run | Scr Mat Mat Sto Peak Influence 253 | . 253 176 77 Initial 74 | . . 22 74 Average 84 | . 117 112 43 Maximum Alert Level 1 | . 1 . . Low Security (%) 90 | 100 71 100 100 Level 1 9 | . 28 . . Level 2 . | . . . . Level 3 . | . . . . Level 4 . | . . . . Level 5 . | . . . . High Security . | . . . . Max Security . | . . . . Squads Dispatched 2 | . . . 2 Investigation 1 | . . . 1 Extermination . | . . . . Reinforcement 1 | . . . 1 Assault . | . . . . Garrison . | . . . . Intercept . | . . . . Construction Impeded . | . . . . Haulers Reinforced . | . . . . Stealth | -11 -10 -9 -9 --------- Run | Scr Mat Mat Sto Distress Signals 2 | . 1 1 . Communications Jammed . | . . . . Distress Signals . | . . . . Times Spotted 32 | . 13 5 14 Peak Tracking Total 6 | . 6 2 5 Tactical Retreats 3 | . 3 . . Traps | -11 -10 -9 -9 ------- Run | Scr Mat Mat Sto Traps Triggered 2 | . . . 2 Indirectly . | . . . . Trap Hack Attempts . | . . . . Triggered . | . . . . Disarmed . | . . . . Reprogrammed . | . . . . Reused . | . . . . Traps Extracted . | . . . . Installed . | . . . . Triggered . | . . . . Machines | -11 -10 -9 -9 ---------- Run | Scr Mat Mat Sto Machines Disabled . | . . . . Max in Single Turn . | . . . . Machines Sabotaged . | . . . . Garrisons Compromised . | . . . . Overloaded Fab Kills . | . . . . Fab Network Shutdowns . | . . . . Hacking | -11 -10 -9 -9 --------- Run | Scr Mat Mat Sto Machines Accessed 10 | . 4 2 4 Terminals 7 | . 2 2 3 Fabricators . | . . . . Repair Stations . | . . . . Recycling Units 3 | . 2 . 1 Scanalyzers . | . . . . Garrison Access . | . . . . Total Hacks 20 | . 5 6 9 Successful 8 | . 2 2 4 Failed 12 | . 3 4 5 Catastrophic 2 | . . 1 1 Database Lockouts . | . . . . Manual 9 | . 3 3 3 Terminals 16 | . 3 6 7 Fabricators . | . . . . Repair Stations . | . . . . Recycling Units 4 | . 2 . 2 Scanalyzers . | . . . . Garrison Access . | . . . . Terminal Hacks 5 | . 1 2 2 Open Door 1 | . . . 1 Level Access Points 1 | . 1 . . Branch Access Points 1 | . . 1 . Emergency Access Points 1 | . . 1 . Unreport Threat 1 | . . . 1 Fabricator Hacks . | . . . . Repair Station Hacks . | . . . . Recycling Unit Hacks 3 | . 1 . 2 Retrieve Matter 1 | . . . 1 Retrieve Components 2 | . 1 . 1 Scanalyzer . | . . . . Garrison Access Hacks . | . . . . Unauthorized Hacks . | . . . . Terminals . | . . . . Fabricators . | . . . . Repair Stations . | . . . . Recycling Units . | . . . . Scanalyzers . | . . . . Garrison Access . | . . . . Data Cores Recovered . | . . . . Used . | . . . . Hacking Detections 5 | . 2 1 2 Full Trace Events . | . . . . Feedback Events . | . . . . Feedback Blocked . | . . . . Robot Schematics Acquired . | . . . . Robots Built . | . . . . Matter . | . . . . Time . | . . . . Total Robot Build Rating . | . . . . Part Schematics Acquired . | . . . . Parts Built . | . . . . Matter . | . . . . Time . | . . . . Total Part Build Rating . | . . . . Parts Repaired . | . . . . Time . | . . . . Parts Recycled . | . . . . Recycled Matter . | . . . . Retrieved Matter . | . . . . Retrieved Components 3 | . 2 . 1 Parts Scanalyzed . | . . . . Part Schematics Acquired . | . . . . Parts Damaged . | . . . . Bothacking | -11 -10 -9 -9 ------------ Run | Scr Mat Mat Sto Used RIF Installer . | . . . . Robots Hacked . | . . . . Non-combat . | . . . . Combat . | . . . . Robot Hacks Applied . | . . . . Relay Couplers Released . | . . . . Robots Rewired . | . . . . Allies Hacked . | . . . . Hacks Repelled . | . . . . Allies | -11 -10 -9 -9 -------- Run | Scr Mat Mat Sto Total Allies . | . . . . Largest Group . | . . . . Highest-Rated Group . | . . . . Highest-Rated Ally . | . . . . Total Orders . | . . . . Ally Attacks . | . . . . Total Damage . | . . . . Kills . | . . . . Allies Corrupted . | . . . . Allies Melted . | . . . . Intel | -11 -10 -9 -9 ------- Run | Scr Mat Mat Sto Robot Analysis Total . | . . . . Derelict Logs Recovered . | . . . . Drone Launches . | . . . . Drone Recoveries . | . . . . Exploration | -11 -10 -9 -9 ------------- Run | Scr Mat Mat Sto Turns Passed 1226 | 66 422 318 420 Spaces Moved 644 | 49 266 181 148 Core 15 | 14 . . 1 Treads 9 | . . . 9 Legs 588 | 35 266 181 106 Wheels 32 | . . . 32 Hover . | . . . . Flight . | . . . . Fastest Speed 50 | 50 120 120 90 Average Speed 117 | 100 120 120 116 Slowest Speed 200 | 120 120 120 200 Overloaded Moves . | . . . . Propulsion Burnouts . | . . . . Robots Hopped . | . . . . Cave-ins Triggered . | . . . . Exploration Rate (%) 22 | 4 38 19 28 Regions Visited 3 Branch Regions 1 Pre-discovered Areas . | . . . . Known Exits Taken 2 | . 1 1 . Unknown Exits Taken 1 | 1 . . . Scrap Searched . | . . . . Spaces Dug . | . . . . Terrain Destroyed . | . . . . Melee . | . . . . Projectile . | . . . . AOE . | . . . . Terrain Rammed . | . . . . Walls Destroyed . | . . . . Machines Disabled . | . . . . Actions | -11 -10 -9 -9 --------- Run | Scr Mat Mat Sto Total 916 | 65 314 233 304 Wait 99 | . 7 14 78 Move 641 | 48 265 180 148 Hop . | . . . . Pick Up 23 | 11 4 4 4 Fast Attach 2 | 1 1 . . Attach 22 | 5 2 4 11 Detach . | . . . . Swap 4 | . 2 2 . Drop 2 | . 2 . . Fire 95 | . 31 29 35 Melee 28 | . . . 28 Ram . | . . . . Kick . | . . . . Crush . | . . . . Escape Stasis . | . . . . Rewire . | . . . . Trap . | . . . . Miscellaneous . | . . . . Route ------- -11/Scrapyard -10/Materials (discovered 3 exits: *Mat x3) -9/Materials (discovered 2 exits: Min / *Sto) -9/Storage History --------- Turn | Location | Event 11 | -11/Scrapyard | Discovered new exit (range 15) 67 | -11/Scrapyard | Entered Materials 255 | -10/Materials | Discovered new exit (range 11) 263 | -10/Materials | Identified exit to Materials 313 | -10/Materials | Build established: Mutant 489 | -10/Materials | Entered another Materials area 489 | -9/Materials | Evolved 2 slots: Propulsion x2 523 | -9/Materials | Identified exit to Mines 523 | -9/Materials | Identified exit to Storage 807 | -9/Materials | Entered Storage 1059 | -9/Storage | Lost 9 parts (4n5w) 1077 | -9/Storage | Core integrity fell below 50% 1212 | -9/Storage | Core integrity fell below 20% 1227 | -9/Storage | Destroyed by G-34 Mercenary with Small Laser Last Messages --------------- 01098_ R-06 Scavenger collects Prototype Flight Unit. 01106_ Acquired 10 matter. 01109_ K-01 Serf collects debris. 01111_ Destroyed Particle Gun. 01111_ Destroyed Lgt. Nuclear Core. 01111_ G-47 Trooper system corrupted by crushing effect. 01112_ G-47 Trooper system terminally corrupted. 01112_ K-01 Serf collects debris. 01182_ Triggered Alarm Trap. 01182_ An alarm sounds. 01182_ ALERT: Alarm triggered, dispatching investigation squad. 01186_ Sneak attack on A-02 Transporter. 01196_ G-34 Mercenary destroyed. 01196_ Door malfunctions. 01207_ U-05 Engineer lays Concrete. 01209_ Y-45 Defender destroyed. 01215_ EMP Blaster destroyed. 01215_ Acquired Hvy. Assault Rifle. 01224_ R-06 Scavenger collects Heat Sink. 01227_ R-06 Scavenger collects Beam Rifle. Map ----- +----------------------------------------------------+ | #######????#!!!!# ### #?????????????????? | | # """ #????# +?????????????????? | | # "Y" #????#!!!!# # #?????????????????? | | # ############ """ #???????#?????????? | | # / # #??????# " """ #+##+##/#?????????? | | # ! # #??????# "T """ +?????????? | | # # #########"" #????????????? | | #!!! # #????????????? | | #!!! # #????????????? | | #!!! + ######### ##+###??????????? | | # # ######### ## [ =% # # #??????????? | | # # #########+## !+ # #??????????? | | # # ## ? # ! # # #??????????? | | ####### ## """ ""? # ! # # #??????????? | | ?????# # """ """?######### + #??????????? | | ?????# # """ """ #??###### # #??????????? | | ?????# T + #??# # # #??????????? | | ?????# # #??# # # #??????????? | | ?????# # ! #??# # # #??????????? | | ?????## ## #??# # #############???? | | ??????# ############### +% % | | ??????# # # #% = ####??????? | | ??????# # # %#% #?????????? | | ??????# # # %+ #?????????? | | ??????# + # # ##### #?????????? | | ??????# # r @###### #???? #?????????? | | ??????# # %;%! #?????#?????????? | | ??????# ###############Yg #???????????????? | | ??????# #?????????????#*%! #???????????????? | | ?????? ?????????????+ !* /????????????? | | ?????? ??????????????########### ?????????? | | ???????????????????????????????????????????????? | | ???????????????????????????????????????????????? | | ???????????????????????????????????????????????? | | ???????????????????????????????????????????????? | | ???????????????????????????????????????????????? | | ???????????????????????????????????????????????? | | ???????????????????????????????????????????????? | | ???????????????????????????????????????????????? | | ???????????????????????????????????????????????? | | ???????????????????????????????????????????????? | | ???????????????????????????????????????????????? | | ???????????????????????????????????????????????? | | ???????????????????????????????????????????????? | | ???????????????????????????????????????????????? | | ???????????????????????????????????????????????? | | ???????????????????????????????????????????????? | | ???????????????????????????????????????????????? | | ???????????????????????????????????????????????? | | ???????????????????????????????????????????????? | +----------------------------------------------------+ Best States ------------- Heat Dissipation 28 Energy Generation 10 Energy Capacity 250 Matter Stores 300 Matter Capacity 300 Sight Range 16 Terrain Scan Density 60 Evasion (%) 50 Recoil Reduction 2 Item Schematics ----------------- None Robot Schematics ------------------ None Fabricated ------------ Nothing Alien Tech Used ----------------- None Achievements -------------- None Challenges ------------ None Game ------ Seed BeamThunderLaser Manual? 0 Play Time 00:13:42 Cumulative 13.4 hours Start 2021.06.15 @ 21:07:13 End 2021.06.15 @ 21:33:18 Sessions 1 Manual Loads 0 Difficulty Rogue Special Mode None Game No. 11 Rogue 11 Adventurer 0 Explorer 0 Win Type - Total 0 Types 0/0/0/0/0/0/0/0/0 Lore% 14 Gallery% 33 Achievement% 22 Wizard Run 0 Options --------- ASCII 1 Keyboard 0 Movement Mouse Keybinds 0 Fullscreen 2 Font 18/X11 Map View 76x50 Tactical HUD 1 Map Filters NONE Filters NONE Steam 1 RUN: 29b572d5-6072-4525-8787-03247ea0e91c